[Event "Titled Tuesday Blitz May 16 Late 2023"]
[White "Prydun, Andriy"]
[Black "Fernandez Guillen, Ernesto J."]
[WhiteFideId "14145898"]
[BlackFideId "3512428"]
[WhiteElo "2164"]
[BlackElo "2429"]
[Result "0-1"]
[Round "01"]
[TimeControl "180+2"]
[Date "2023.05.16"]
[WhiteClock "0:00:02"]
[BlackClock "0:00:07"]

1. e4 {[%clk 0:02:59]}  e5 {[%clk 0:02:57]} 2. Nf3 {[%clk 0:02:59]}  Nc6 {[%clk 0:02:56]} 3. Nc3 {[%clk 0:02:55]}  g6 {[%clk 0:02:56]} 4. Bb5 {[%clk 0:02:51]}  Bg7 {[%clk 0:02:54]} 5. d3 {[%clk 0:02:47]}  Nge7 {[%clk 0:02:48]} 6. Be3 {[%clk 0:02:13]}  Nd4 {[%clk 0:02:42]} 7. Bc4 {[%clk 0:01:22]}  O-O {[%clk 0:02:35]} 8. Bxd4 {[%clk 0:01:11]}  exd4 {[%clk 0:02:33]} 9. Nd5 {[%clk 0:01:12]}  Nxd5 {[%clk 0:02:32]} 10. Bxd5 {[%clk 0:01:10]}  c6 {[%clk 0:02:31]} 11. Bb3 {[%clk 0:01:10]}  d5 {[%clk 0:02:32]} 12. exd5 {[%clk 0:01:08]}  Re8+ {[%clk 0:02:31]} 13. Kf1 {[%clk 0:01:08]}  cxd5 {[%clk 0:02:32]} 14. h3 {[%clk 0:01:09]}  a5 {[%clk 0:02:28]} 15. a4 {[%clk 0:01:04]}  Ra6 {[%clk 0:02:23]} 16. Qd2 {[%clk 0:01:02]}  Rae6 {[%clk 0:01:24]} 17. Re1 {[%clk 0:01:01]}  Rxe1+ {[%clk 0:01:23]} 18. Nxe1 {[%clk 0:00:48]}  h6 {[%clk 0:00:34]} 19. g3 {[%clk 0:00:42]}  g5 {[%clk 0:00:29]} 20. Kg2 {[%clk 0:00:40]}  b6 {[%clk 0:00:25]} 21. Nf3 {[%clk 0:00:38]}  Be6 {[%clk 0:00:14]} 22. h4 {[%clk 0:00:29]}  g4 {[%clk 0:00:14]} 23. Nh2 {[%clk 0:00:27]}  h5 {[%clk 0:00:11]} 24. Re1 {[%clk 0:00:26]}  Qf6 {[%clk 0:00:10]} 25. Qe2 {[%clk 0:00:18]}  Rc8 {[%clk 0:00:09]} 26. Qd2 {[%clk 0:00:16]}  Bh6 {[%clk 0:00:09]} 27. Qe2 {[%clk 0:00:17]}  Kg7 {[%clk 0:00:10]} 28. Qe5 {[%clk 0:00:17]}  Qxe5 {[%clk 0:00:09]} 29. Rxe5 {[%clk 0:00:18]}  Kg6 {[%clk 0:00:10]} 30. Kf1 {[%clk 0:00:17]}  Bg7 {[%clk 0:00:10]} 31. Re1 {[%clk 0:00:17]}  Bf6 {[%clk 0:00:09]} 32. Ke2 {[%clk 0:00:15]}  Kf5 {[%clk 0:00:09]} 33. Kd1 {[%clk 0:00:14]}  Be7 {[%clk 0:00:10]} 34. Nf1 {[%clk 0:00:14]}  Bb4 {[%clk 0:00:10]} 35. Re2 {[%clk 0:00:14]}  Rc5 {[%clk 0:00:09]} 36. Nd2 {[%clk 0:00:13]}  Bd7 {[%clk 0:00:09]} 37. Nb1 {[%clk 0:00:11]}  b5 {[%clk 0:00:09]} 38. axb5 {[%clk 0:00:10]}  Bxb5 {[%clk 0:00:10]} 39. Ba2 {[%clk 0:00:10]}  Bd7 {[%clk 0:00:07]} 40. Nd2 {[%clk 0:00:08]}  a4 {[%clk 0:00:06]} 41. Nb1 {[%clk 0:00:08]}  Ba5 {[%clk 0:00:06]} 42. Na3 {[%clk 0:00:07]}  Be6 {[%clk 0:00:06]} 43. Kc1 {[%clk 0:00:07]}  Bb4 {[%clk 0:00:06]} 44. Kd1 {[%clk 0:00:07]}  Bxa3 {[%clk 0:00:06]} 45. bxa3 {[%clk 0:00:08]}  Rc3 {[%clk 0:00:06]} 46. Kc1 {[%clk 0:00:08]}  Rxa3 {[%clk 0:00:07]} 47. Kb2 {[%clk 0:00:08]}  Rc3 {[%clk 0:00:08]} 48. Re1 {[%clk 0:00:09]}  Kf6 {[%clk 0:00:06]} 49. Ra1 {[%clk 0:00:08]}  a3+ {[%clk 0:00:05]} 50. Kb1 {[%clk 0:00:09]}  Ke5 {[%clk 0:00:05]} 51. Bb3 {[%clk 0:00:09]}  f5 {[%clk 0:00:05]} 52. Rxa3 {[%clk 0:00:09]}  f4 {[%clk 0:00:06]} 53. Ra7 {[%clk 0:00:09]}  fxg3 {[%clk 0:00:05]} 54. fxg3 {[%clk 0:00:10]}  Kf6 {[%clk 0:00:04]} 55. Rh7 {[%clk 0:00:10]}  Bf7 {[%clk 0:00:05]} 56. Rh6+ {[%clk 0:00:08]}  Kf5 {[%clk 0:00:05]} 57. Rh7 {[%clk 0:00:08]}  Kg6 {[%clk 0:00:05]} 58. Rh8 {[%clk 0:00:08]}  Rc6 {[%clk 0:00:06]} 59. Rd8 {[%clk 0:00:08]}  Rf6 {[%clk 0:00:05]} 60. Bxd5 {[%clk 0:00:08]}  Bxd5 {[%clk 0:00:06]} 61. Rxd5 {[%clk 0:00:09]}  Rf3 {[%clk 0:00:06]} 62. Rg5+ {[%clk 0:00:09]}  Kh6 {[%clk 0:00:06]} 63. Rd5 {[%clk 0:00:09]}  Rxg3 {[%clk 0:00:07]} 64. Rxd4 {[%clk 0:00:09]}  Rh3 {[%clk 0:00:07]} 65. c4 {[%clk 0:00:09]}  g3 {[%clk 0:00:05]} 66. Rd6+ {[%clk 0:00:09]}  Kg7 {[%clk 0:00:05]} 67. Rd7+ {[%clk 0:00:09]}  Kf6 {[%clk 0:00:05]} 68. Rd6+ {[%clk 0:00:08]}  Kf5 {[%clk 0:00:06]} 69. Rd5+ {[%clk 0:00:08]}  Kf4 {[%clk 0:00:07]} 70. Rd4+ {[%clk 0:00:02]}  Kf3 {[%clk 0:00:07]} 0-1


[Site "https://www.chess.com"]

[Event "Titled Tuesday Blitz May 16 Late 2023"]
[White "Hambleton, Aman"]
[Black "Martin Barcelo, Carles"]
[WhiteFideId "2606577"]
[BlackFideId "24561444"]
[WhiteElo "2511"]
[BlackElo "2089"]
[Result "1-0"]
[Round "01"]
[TimeControl "180+2"]
[Date "2023.05.16"]
[WhiteClock "0:00:12"]
[BlackClock "0:00:02"]

1. d4 {[%clk 0:02:54]}  Nf6 {[%clk 0:02:58]} 2. Bf4 {[%clk 0:02:52]}  g6 {[%clk 0:02:55]} 3. Nc3 {[%clk 0:02:52]}  d5 {[%clk 0:02:53]} 4. e3 {[%clk 0:02:52]}  Bg7 {[%clk 0:02:51]} 5. h4 {[%clk 0:02:53]}  h5 {[%clk 0:02:51]} 6. Nf3 {[%clk 0:02:53]}  O-O {[%clk 0:02:48]} 7. Ne5 {[%clk 0:02:52]}  c5 {[%clk 0:02:46]} 8. Qd2 {[%clk 0:02:43]}  Nc6 {[%clk 0:02:45]} 9. O-O-O {[%clk 0:02:42]}  Ne4 {[%clk 0:02:08]} 10. Nxe4 {[%clk 0:02:41]}  dxe4 {[%clk 0:02:09]} 11. Nxc6 {[%clk 0:02:30]}  bxc6 {[%clk 0:02:10]} 12. dxc5 {[%clk 0:02:30]}  Be6 {[%clk 0:01:57]} 13. Qxd8 {[%clk 0:02:11]}  Rfxd8 {[%clk 0:01:58]} 14. Ba6 {[%clk 0:02:06]}  Bg4 {[%clk 0:01:25]} 15. Rxd8+ {[%clk 0:01:12]}  Rxd8 {[%clk 0:01:26]} 16. Bb7 {[%clk 0:01:09]}  e5 {[%clk 0:00:58]} 17. Bg3 {[%clk 0:01:09]}  f5 {[%clk 0:00:49]} 18. Bxc6 {[%clk 0:01:04]}  Rc8 {[%clk 0:00:47]} 19. Bd5+ {[%clk 0:01:03]}  Kf8 {[%clk 0:00:48]} 20. b4 {[%clk 0:01:03]}  a5 {[%clk 0:00:48]} 21. a3 {[%clk 0:00:29]}  Ke7 {[%clk 0:00:30]} 22. c4 {[%clk 0:00:24]}  f4 {[%clk 0:00:19]} 23. Bh2 {[%clk 0:00:14]}  Bh6 {[%clk 0:00:19]} 24. Kd2 {[%clk 0:00:13]}  Kd7 {[%clk 0:00:08]} 25. Rb1 {[%clk 0:00:11]}  Rc7 {[%clk 0:00:04]} 26. Bxe4 {[%clk 0:00:11]}  fxe3+ {[%clk 0:00:04]} 27. fxe3 {[%clk 0:00:11]}  Ke6 {[%clk 0:00:04]} 28. Bd5+ {[%clk 0:00:12]}  Kf5 {[%clk 0:00:02]} 29. Rf1+ {[%clk 0:00:12]} 1-0


[Site "https://www.chess.com"]

[Event "Titled Tuesday Blitz May 16 Late 2023"]
[White "Wagner, Dennis"]
[Black "Marra, Eduardo da Costa"]
[WhiteFideId "24650684"]
[BlackFideId "2106990"]
[WhiteElo "2478"]
[BlackElo "2252"]
[Result "0-1"]
[Round "01"]
[TimeControl "180+2"]
[Date "2023.05.16"]
[WhiteClock "0:00:00"]
[BlackClock "0:01:02"]

1. e4 {[%clk 0:03:00]}  c5 {[%clk 0:02:59]} 2. Nf3 {[%clk 0:03:01]}  e6 {[%clk 0:02:57]} 3. d4 {[%clk 0:03:00]}  cxd4 {[%clk 0:02:58]} 4. Nxd4 {[%clk 0:03:01]}  Nf6 {[%clk 0:02:58]} 5. Nc3 {[%clk 0:03:01]}  Nc6 {[%clk 0:02:59]} 6. Be2 {[%clk 0:02:56]}  Bb4 {[%clk 0:02:54]} 7. O-O {[%clk 0:02:55]}  Bxc3 {[%clk 0:02:54]} 8. bxc3 {[%clk 0:02:56]}  Nxe4 {[%clk 0:02:54]} 9. Nxc6 {[%clk 0:02:49]}  bxc6 {[%clk 0:02:51]} 10. Qd4 {[%clk 0:02:40]}  d5 {[%clk 0:02:45]} 11. Qxg7 {[%clk 0:02:20]}  Qf6 {[%clk 0:02:45]} 12. Qxf6 {[%clk 0:02:19]}  Nxf6 {[%clk 0:02:46]} 13. Rb1 {[%clk 0:02:17]}  Ne4 {[%clk 0:02:41]} 14. Rb3 {[%clk 0:02:03]}  a5 {[%clk 0:02:40]} 15. f3 {[%clk 0:01:49]}  a4 {[%clk 0:02:27]} 16. Ra3 {[%clk 0:01:49]}  Nd6 {[%clk 0:02:21]} 17. c4 {[%clk 0:01:28]}  Nxc4 {[%clk 0:02:13]} 18. Bxc4 {[%clk 0:01:28]}  dxc4 {[%clk 0:02:14]} 19. Bf4 {[%clk 0:01:27]}  Ke7 {[%clk 0:01:54]} 20. Rd1 {[%clk 0:01:26]}  f6 {[%clk 0:01:48]} 21. Bd6+ {[%clk 0:01:23]}  Kf7 {[%clk 0:01:48]} 22. Bc5 {[%clk 0:01:14]}  Ra5 {[%clk 0:01:39]} 23. Be3 {[%clk 0:01:06]}  e5 {[%clk 0:01:30]} 24. Kf2 {[%clk 0:01:05]}  Be6 {[%clk 0:01:27]} 25. Rb1 {[%clk 0:01:01]}  Rb5 {[%clk 0:01:25]} 26. Rc1 {[%clk 0:00:53]}  Ra8 {[%clk 0:01:26]} 27. Rc3 {[%clk 0:00:51]}  Bd5 {[%clk 0:01:26]} 28. a3 {[%clk 0:00:51]}  Ke6 {[%clk 0:01:24]} 29. g4 {[%clk 0:00:41]}  Rg8 {[%clk 0:01:23]} 30. Bd2 {[%clk 0:00:34]}  Rb7 {[%clk 0:01:11]} 31. Re3 {[%clk 0:00:35]}  h5 {[%clk 0:01:06]} 32. h3 {[%clk 0:00:14]}  Rh7 {[%clk 0:01:05]} 33. Re2 {[%clk 0:00:02]}  hxg4 {[%clk 0:01:05]} 34. hxg4 {[%clk 0:00:03]}  Rh3 {[%clk 0:01:05]} 35. Rh1 {[%clk 0:00:01]}  Rxh1 {[%clk 0:01:03]} 36. Ke3 {[%clk 0:00:01]}  Rh3 {[%clk 0:01:02]} 37. Rf2 {[%clk 0:00:00]}  Rxg4 {[%clk 0:01:02]} 0-1


[Site "https://www.chess.com"]

[Event "Titled Tuesday Blitz May 16 Late 2023"]
[White "Balague Camps, Marc"]
[Black "Chen, Ryo"]
[WhiteFideId "2297914"]
[BlackFideId "7003072"]
[WhiteElo "2089"]
[BlackElo "2169"]
[Result "0-1"]
[Round "01"]
[TimeControl "180+2"]
[Date "2023.05.16"]
[WhiteClock "0:01:17"]
[BlackClock "0:00:54"]

1. d4 {[%clk 0:03:00]}  Nf6 {[%clk 0:03:00]} 2. c4 {[%clk 0:02:59]}  g6 {[%clk 0:03:00]} 3. Nc3 {[%clk 0:02:59]}  Bg7 {[%clk 0:03:01]} 4. e4 {[%clk 0:02:59]}  d6 {[%clk 0:03:01]} 5. f4 {[%clk 0:03:00]}  O-O {[%clk 0:02:59]} 6. Nf3 {[%clk 0:03:01]}  e5 {[%clk 0:02:51]} 7. fxe5 {[%clk 0:03:01]}  dxe5 {[%clk 0:02:51]} 8. d5 {[%clk 0:03:02]}  c6 {[%clk 0:02:51]} 9. Be2 {[%clk 0:03:02]}  b5 {[%clk 0:02:46]} 10. O-O {[%clk 0:02:57]}  bxc4 {[%clk 0:02:41]} 11. Nxe5 {[%clk 0:02:53]}  cxd5 {[%clk 0:02:34]} 12. exd5 {[%clk 0:02:52]}  Nbd7 {[%clk 0:02:18]} 13. Nc6 {[%clk 0:02:51]}  Qb6+ {[%clk 0:02:17]} 14. Kh1 {[%clk 0:02:51]}  Re8 {[%clk 0:02:14]} 15. Bxc4 {[%clk 0:02:41]}  Ba6 {[%clk 0:02:06]} 16. Bxa6 {[%clk 0:02:35]}  Qxa6 {[%clk 0:02:07]} 17. Bg5 {[%clk 0:02:19]}  h6 {[%clk 0:01:58]} 18. Bh4 {[%clk 0:02:19]}  g5 {[%clk 0:01:50]} 19. Bg3 {[%clk 0:02:13]}  Qb6 {[%clk 0:01:45]} 20. b4 {[%clk 0:02:09]}  Nh7 {[%clk 0:01:23]} 21. Qf3 {[%clk 0:02:04]}  f5 {[%clk 0:01:18]} 22. Qxf5 {[%clk 0:01:59]}  Bxc3 {[%clk 0:01:12]} 23. Qg6+ {[%clk 0:01:55]}  Kh8 {[%clk 0:01:04]} 24. Rf7 {[%clk 0:01:51]}  Ndf8 {[%clk 0:01:03]} 25. Qxh6 {[%clk 0:01:45]}  Bxa1 {[%clk 0:00:56]} 26. Bd6 {[%clk 0:01:17]}  Re1+ {[%clk 0:00:54]} 0-1


[Site "https://www.chess.com"]

[Event "Titled Tuesday Blitz May 16 Late 2023"]
[White "Trost, Edvin"]
[Black "Yeritsyan, Hayk"]
[WhiteFideId "1729519"]
[BlackFideId "13307320"]
[WhiteElo "2368"]
[BlackElo "2435"]
[Result "1-0"]
[Round "01"]
[TimeControl "180+2"]
[Date "2023.05.16"]
[WhiteClock "0:01:03"]
[BlackClock "0:01:04"]

1. d4 {[%clk 0:02:56]}  d5 {[%clk 0:02:59]} 2. Nf3 {[%clk 0:02:53]}  Nf6 {[%clk 0:02:59]} 3. c4 {[%clk 0:02:39]}  e6 {[%clk 0:02:58]} 4. Nc3 {[%clk 0:02:38]}  c6 {[%clk 0:02:57]} 5. Bg5 {[%clk 0:02:16]}  Nbd7 {[%clk 0:02:57]} 6. e3 {[%clk 0:02:15]}  Qa5 {[%clk 0:02:56]} 7. Nd2 {[%clk 0:02:13]}  Bb4 {[%clk 0:02:55]} 8. Qc2 {[%clk 0:02:12]}  dxc4 {[%clk 0:02:55]} 9. Bxf6 {[%clk 0:02:12]}  Nxf6 {[%clk 0:02:56]} 10. Nxc4 {[%clk 0:02:13]}  Bxc3+ {[%clk 0:02:56]} 11. Qxc3 {[%clk 0:02:12]}  Qxc3+ {[%clk 0:02:56]} 12. bxc3 {[%clk 0:02:13]}  c5 {[%clk 0:02:57]} 13. Be2 {[%clk 0:02:09]}  Ke7 {[%clk 0:02:54]} 14. Bf3 {[%clk 0:02:09]}  Rb8 {[%clk 0:02:33]} 15. O-O {[%clk 0:02:06]}  b6 {[%clk 0:02:30]} 16. a4 {[%clk 0:02:06]}  Ba6 {[%clk 0:02:29]} 17. Be2 {[%clk 0:02:04]}  Rhc8 {[%clk 0:02:27]} 18. Rfc1 {[%clk 0:02:04]}  Bxc4 {[%clk 0:02:27]} 19. Bxc4 {[%clk 0:02:04]}  Rc7 {[%clk 0:02:24]} 20. Ba6 {[%clk 0:02:02]}  Nd5 {[%clk 0:02:13]} 21. e4 {[%clk 0:02:00]}  Nf6 {[%clk 0:02:07]} 22. f3 {[%clk 0:02:00]}  Rd8 {[%clk 0:02:05]} 23. Rd1 {[%clk 0:01:59]}  cxd4 {[%clk 0:01:48]} 24. cxd4 {[%clk 0:02:00]}  Rc2 {[%clk 0:01:49]} 25. Ra3 {[%clk 0:01:11]}  Rb2 {[%clk 0:01:25]} 26. Rc3 {[%clk 0:01:08]}  Rd7 {[%clk 0:01:23]} 27. Bb5 {[%clk 0:01:06]}  Rd8 {[%clk 0:01:17]} 28. Rc7+ {[%clk 0:01:06]}  Kf8 {[%clk 0:01:17]} 29. Rxa7 {[%clk 0:01:06]}  Rb4 {[%clk 0:01:17]} 30. Rb7 {[%clk 0:01:03]}  Nd7 {[%clk 0:01:04]} 31. Rxd7 {[%clk 0:01:03]} 1-0


[Site "https://www.chess.com"]

[Event "Titled Tuesday Blitz May 16 Late 2023"]
[White "Ivanisevic, Ivan"]
[Black "Gundam, Rohit"]
[WhiteFideId "912417"]
[BlackFideId "75002809"]
[WhiteElo "2592"]
[BlackElo "2427"]
[Result "0-1"]
[Round "01"]
[TimeControl "180+2"]
[Date "2023.05.16"]
[WhiteClock "0:00:00"]
[BlackClock "0:00:47"]

1. d4 {[%clk 0:02:58]}  Nf6 {[%clk 0:02:59]} 2. Nf3 {[%clk 0:02:58]}  e6 {[%clk 0:02:59]} 3. Bg5 {[%clk 0:02:58]}  h6 {[%clk 0:02:58]} 4. Bh4 {[%clk 0:02:57]}  b6 {[%clk 0:02:59]} 5. Nbd2 {[%clk 0:02:56]}  Bb7 {[%clk 0:02:59]} 6. e3 {[%clk 0:02:55]}  Be7 {[%clk 0:02:58]} 7. Bd3 {[%clk 0:02:54]}  c5 {[%clk 0:02:58]} 8. c3 {[%clk 0:02:51]}  Nc6 {[%clk 0:02:59]} 9. Bxf6 {[%clk 0:02:42]}  Bxf6 {[%clk 0:02:59]} 10. Qe2 {[%clk 0:02:43]}  O-O {[%clk 0:02:59]} 11. h4 {[%clk 0:02:42]}  d5 {[%clk 0:02:59]} 12. g4 {[%clk 0:02:41]}  Be7 {[%clk 0:02:50]} 13. g5 {[%clk 0:02:35]}  h5 {[%clk 0:02:48]} 14. g6 {[%clk 0:02:21]}  Qc7 {[%clk 0:02:21]} 15. Ng5 {[%clk 0:02:16]}  Bxg5 {[%clk 0:02:14]} 16. hxg5 {[%clk 0:02:14]}  fxg6 {[%clk 0:02:09]} 17. Bxg6 {[%clk 0:02:13]}  Ne7 {[%clk 0:02:08]} 18. Qxh5 {[%clk 0:01:51]}  Nxg6 {[%clk 0:02:02]} 19. Qxg6 {[%clk 0:01:52]}  cxd4 {[%clk 0:01:40]} 20. cxd4 {[%clk 0:01:41]}  Rae8 {[%clk 0:01:27]} 21. f4 {[%clk 0:01:28]}  Ba6 {[%clk 0:01:15]} 22. Nf3 {[%clk 0:01:26]}  e5 {[%clk 0:01:08]} 23. Qh7+ {[%clk 0:01:08]}  Kf7 {[%clk 0:01:07]} 24. Nxe5+ {[%clk 0:00:57]}  Rxe5 {[%clk 0:01:07]} 25. fxe5 {[%clk 0:00:58]}  Qc4 {[%clk 0:00:56]} 26. Rh2 {[%clk 0:00:31]}  Ke7 {[%clk 0:00:47]} 27. Rf2 {[%clk 0:00:00]}  Qb4+ {[%clk 0:00:47]} 0-1


[Site "https://www.chess.com"]

[Event "Titled Tuesday Blitz May 16 Late 2023"]
[White "Kozionov, Kirill"]
[Black "Senft, Sean"]
[WhiteFideId "24101729"]
[BlackFideId "2044960"]
[WhiteElo "2377"]
[BlackElo "1989"]
[Result "1/2-1/2"]
[Round "01"]
[TimeControl "180+2"]
[Date "2023.05.16"]
[WhiteClock "0:00:03"]
[BlackClock "0:00:36"]

1. b3 {[%clk 0:02:58]}  d5 {[%clk 0:02:57]} 2. Bb2 {[%clk 0:02:58]}  Nf6 {[%clk 0:02:57]} 3. Nf3 {[%clk 0:02:56]}  Bf5 {[%clk 0:02:57]} 4. g3 {[%clk 0:02:55]}  e6 {[%clk 0:02:56]} 5. Bg2 {[%clk 0:02:56]}  Be7 {[%clk 0:02:57]} 6. O-O {[%clk 0:02:55]}  O-O {[%clk 0:02:57]} 7. d3 {[%clk 0:02:55]}  h6 {[%clk 0:02:56]} 8. Nbd2 {[%clk 0:02:53]}  c5 {[%clk 0:02:52]} 9. c4 {[%clk 0:02:51]}  Nc6 {[%clk 0:02:52]} 10. Ne5 {[%clk 0:02:51]}  Nxe5 {[%clk 0:02:51]} 11. Bxe5 {[%clk 0:02:52]}  Qd7 {[%clk 0:02:39]} 12. cxd5 {[%clk 0:02:46]}  exd5 {[%clk 0:02:37]} 13. Rc1 {[%clk 0:02:41]}  d4 {[%clk 0:02:32]} 14. Bxf6 {[%clk 0:02:38]}  Bxf6 {[%clk 0:02:31]} 15. Rxc5 {[%clk 0:02:38]}  Rac8 {[%clk 0:02:29]} 16. Rd5 {[%clk 0:01:59]}  Qe6 {[%clk 0:02:23]} 17. Nc4 {[%clk 0:01:34]}  Rfe8 {[%clk 0:02:15]} 18. Nd6 {[%clk 0:00:49]}  Red8 {[%clk 0:02:15]} 19. Rxf5 {[%clk 0:00:27]}  Rxd6 {[%clk 0:02:12]} 20. Ra5 {[%clk 0:00:26]}  Bg5 {[%clk 0:01:57]} 21. b4 {[%clk 0:00:14]}  Rc1 {[%clk 0:01:50]} 22. Qb3 {[%clk 0:00:11]}  Qxe2 {[%clk 0:01:50]} 23. Rf5 {[%clk 0:00:06]}  Rf6 {[%clk 0:01:41]} 24. Rxf6 {[%clk 0:00:03]}  gxf6 {[%clk 0:01:42]} 25. Rxc1 {[%clk 0:00:02]}  Bxc1 {[%clk 0:01:42]} 26. Qc4 {[%clk 0:00:02]}  Qe1+ {[%clk 0:01:06]} 27. Bf1 {[%clk 0:00:02]}  Be3 {[%clk 0:01:07]} 28. fxe3 {[%clk 0:00:02]}  dxe3 {[%clk 0:01:08]} 29. Qc2 {[%clk 0:00:03]}  h5 {[%clk 0:01:05]} 30. Qe2 {[%clk 0:00:03]}  Qc1 {[%clk 0:01:06]} 31. Qxh5 {[%clk 0:00:02]}  Qc3 {[%clk 0:00:58]} 32. Qg4+ {[%clk 0:00:02]}  Kf8 {[%clk 0:00:58]} 33. Qc4 {[%clk 0:00:02]}  Qd2 {[%clk 0:00:58]} 34. Qc5+ {[%clk 0:00:03]}  Kg7 {[%clk 0:00:58]} 35. Qf5 {[%clk 0:00:03]}  Qc1 {[%clk 0:00:57]} 36. Qg4+ {[%clk 0:00:03]}  Kf8 {[%clk 0:00:57]} 37. Qe2 {[%clk 0:00:04]}  f5 {[%clk 0:00:57]} 38. Kg2 {[%clk 0:00:04]}  b6 {[%clk 0:00:55]} 39. Kf3 {[%clk 0:00:05]}  a5 {[%clk 0:00:54]} 40. bxa5 {[%clk 0:00:05]}  bxa5 {[%clk 0:00:55]} 41. Bg2 {[%clk 0:00:05]}  a4 {[%clk 0:00:53]} 42. Qxe3 {[%clk 0:00:05]}  Qb2 {[%clk 0:00:53]} 43. Qe2 {[%clk 0:00:05]}  a3 {[%clk 0:00:53]} 44. Kf2 {[%clk 0:00:04]}  Qd4+ {[%clk 0:00:54]} 45. Kf1 {[%clk 0:00:04]}  Qa1+ {[%clk 0:00:54]} 46. Kf2 {[%clk 0:00:04]}  Qd4+ {[%clk 0:00:54]} 47. Kf3 {[%clk 0:00:04]}  Qd5+ {[%clk 0:00:54]} 48. Kf4 {[%clk 0:00:04]}  Qc5 {[%clk 0:00:50]} 49. Bf3 {[%clk 0:00:03]}  Kg7 {[%clk 0:00:49]} 50. g4 {[%clk 0:00:02]}  fxg4 {[%clk 0:00:34]} 51. Kxg4 {[%clk 0:00:03]}  f6 {[%clk 0:00:33]} 52. Kg3 {[%clk 0:00:03]}  Qg5+ {[%clk 0:00:32]} 53. Kf2 {[%clk 0:00:03]}  Qc5+ {[%clk 0:00:33]} 54. Kg2 {[%clk 0:00:03]}  Qg5+ {[%clk 0:00:33]} 55. Kf1 {[%clk 0:00:04]}  Qc1+ {[%clk 0:00:34]} 56. Kf2 {[%clk 0:00:03]}  Qc5+ {[%clk 0:00:34]} 57. Qe3 {[%clk 0:00:03]}  Qc2+ {[%clk 0:00:35]} 58. Qe2 {[%clk 0:00:03]}  Qc5+ {[%clk 0:00:36]} 1/2-1/2


[Site "https://www.chess.com"]

[Event "Titled Tuesday Blitz May 16 Late 2023"]
[White "Novikova, Galina"]
[Black "Harshavardhan G B"]
[WhiteFideId "4157095"]
[BlackFideId "25059009"]
[WhiteElo "1953"]
[BlackElo "2323"]
[Result "1-0"]
[Round "01"]
[TimeControl "180+2"]
[Date "2023.05.16"]
[WhiteClock "0:01:08"]
[BlackClock "0:01:02"]

1. e4 {[%clk 0:02:56]}  c5 {[%clk 0:02:56]} 2. Nf3 {[%clk 0:02:56]}  d6 {[%clk 0:02:50]} 3. d4 {[%clk 0:02:57]}  cxd4 {[%clk 0:02:50]} 4. Nxd4 {[%clk 0:02:57]}  Nf6 {[%clk 0:02:49]} 5. Nc3 {[%clk 0:02:58]}  Nc6 {[%clk 0:02:49]} 6. h3 {[%clk 0:02:55]}  e5 {[%clk 0:02:46]} 7. Nde2 {[%clk 0:02:53]}  Be7 {[%clk 0:02:45]} 8. g4 {[%clk 0:02:53]}  h6 {[%clk 0:02:43]} 9. Bg2 {[%clk 0:02:53]}  Be6 {[%clk 0:02:42]} 10. Ng3 {[%clk 0:02:54]}  a6 {[%clk 0:02:38]} 11. Be3 {[%clk 0:02:54]}  Qd7 {[%clk 0:02:36]} 12. O-O {[%clk 0:02:53]}  g6 {[%clk 0:02:23]} 13. Nd5 {[%clk 0:02:46]}  Bxd5 {[%clk 0:02:14]} 14. exd5 {[%clk 0:02:47]}  Nb8 {[%clk 0:02:12]} 15. c4 {[%clk 0:02:42]}  h5 {[%clk 0:02:11]} 16. g5 {[%clk 0:02:41]}  Nh7 {[%clk 0:02:11]} 17. h4 {[%clk 0:02:42]}  O-O {[%clk 0:02:09]} 18. Kh2 {[%clk 0:02:35]}  Qc7 {[%clk 0:02:08]} 19. Rc1 {[%clk 0:02:33]}  Nd7 {[%clk 0:02:08]} 20. b4 {[%clk 0:02:31]}  a5 {[%clk 0:02:08]} 21. a3 {[%clk 0:02:31]}  axb4 {[%clk 0:02:06]} 22. axb4 {[%clk 0:02:32]}  b6 {[%clk 0:02:03]} 23. Be4 {[%clk 0:02:13]}  Ra2 {[%clk 0:01:37]} 24. Nxh5 {[%clk 0:02:08]}  gxh5 {[%clk 0:01:35]} 25. Qxh5 {[%clk 0:02:09]}  f5 {[%clk 0:01:36]} 26. Bxf5 {[%clk 0:01:33]}  Rxf5 {[%clk 0:01:35]} 27. Qg6+ {[%clk 0:01:34]}  Kh8 {[%clk 0:01:36]} 28. Qxf5 {[%clk 0:01:34]}  Qd8 {[%clk 0:01:34]} 29. Ra1 {[%clk 0:01:25]}  Rxa1 {[%clk 0:01:23]} 30. Rxa1 {[%clk 0:01:26]}  Qe8 {[%clk 0:01:23]} 31. g6 {[%clk 0:01:22]}  Nhf8 {[%clk 0:01:21]} 32. h5 {[%clk 0:01:23]}  Nf6 {[%clk 0:01:12]} 33. Ra7 {[%clk 0:01:14]}  Ng8 {[%clk 0:01:07]} 34. Bg5 {[%clk 0:01:09]}  Bxg5 {[%clk 0:01:02]} 35. g7# {[%clk 0:01:08]} 1-0


[Site "https://www.chess.com"]

[Event "Titled Tuesday Blitz May 16 Late 2023"]
[White "Klukin, Kirill"]
[Black "Rangel, Daniel"]
[WhiteFideId "24199273"]
[BlackFideId "2124475"]
[WhiteElo "2344"]
[BlackElo "2256"]
[Result "1-0"]
[Round "01"]
[TimeControl "180+2"]
[Date "2023.05.16"]
[WhiteClock "0:00:51"]
[BlackClock "0:00:06"]

1. f4 {[%clk 0:03:00]}  Nf6 {[%clk 0:02:57]} 2. Nf3 {[%clk 0:03:01]}  g6 {[%clk 0:02:54]} 3. g3 {[%clk 0:03:01]}  Bg7 {[%clk 0:02:54]} 4. Bg2 {[%clk 0:03:02]}  O-O {[%clk 0:02:53]} 5. O-O {[%clk 0:03:03]}  d5 {[%clk 0:02:52]} 6. d3 {[%clk 0:03:02]}  b6 {[%clk 0:02:52]} 7. Nc3 {[%clk 0:03:02]}  Bb7 {[%clk 0:02:51]} 8. e4 {[%clk 0:02:59]}  dxe4 {[%clk 0:02:47]} 9. Ng5 {[%clk 0:02:59]}  c5 {[%clk 0:02:45]} 10. dxe4 {[%clk 0:02:57]}  Qxd1 {[%clk 0:02:41]} 11. Rxd1 {[%clk 0:02:53]}  Nc6 {[%clk 0:02:40]} 12. e5 {[%clk 0:02:45]}  Ng4 {[%clk 0:02:25]} 13. h3 {[%clk 0:02:29]}  Nh6 {[%clk 0:02:20]} 14. g4 {[%clk 0:02:27]}  Rfd8 {[%clk 0:02:10]} 15. Be3 {[%clk 0:02:24]}  Na5 {[%clk 0:02:04]} 16. Nd5 {[%clk 0:02:19]}  Bf8 {[%clk 0:01:44]} 17. c3 {[%clk 0:02:11]}  Kg7 {[%clk 0:01:32]} 18. Bf2 {[%clk 0:02:07]}  Ng8 {[%clk 0:01:31]} 19. b4 {[%clk 0:01:59]}  cxb4 {[%clk 0:01:26]} 20. cxb4 {[%clk 0:01:59]}  Nc6 {[%clk 0:01:26]} 21. e6 {[%clk 0:01:35]}  f6 {[%clk 0:01:16]} 22. Nf7 {[%clk 0:01:35]}  Rdc8 {[%clk 0:01:17]} 23. f5 {[%clk 0:01:30]}  Nh6 {[%clk 0:01:02]} 24. Nxh6 {[%clk 0:01:28]}  Kxh6 {[%clk 0:01:03]} 25. Be3+ {[%clk 0:01:28]}  Kg7 {[%clk 0:01:02]} 26. Nf4 {[%clk 0:01:12]}  Rd8 {[%clk 0:00:45]} 27. Rd7 {[%clk 0:01:08]}  Rxd7 {[%clk 0:00:19]} 28. exd7 {[%clk 0:01:09]}  Nd8 {[%clk 0:00:19]} 29. Ne6+ {[%clk 0:01:06]}  Kg8 {[%clk 0:00:12]} 30. Bxb7 {[%clk 0:00:55]}  Nxb7 {[%clk 0:00:12]} 31. Rc1 {[%clk 0:00:55]}  gxf5 {[%clk 0:00:06]} 32. Rc8 {[%clk 0:00:51]} 1-0


[Site "https://www.chess.com"]